bitfinex-derivatives/quotes_SOLF0:USTF0_20240924
["timestamp","ask_amount","ask_price","bid_price","bid_amount"]
[1727219417428,6.5435,152.82,152.62,349.13875399]
[1727219417429,6.5435,152.82,152.7,7.05]
[1727219417625,7.05,152.76,152.71,7.05]
[1727219418331,10.323,152.76,152.73,3.2735]
[1727219418822,3.2731,152.75,152.72,3.2737]
[1727219419028,7.05,152.73,152.62,349.13875399]
[1727219419324,7.05,152.69,152.64,7.05]
[1727219419530,10.3245,152.69,152.66,3.2749]
[1727219422144,3.2745,152.69,152.66,3.2749]
[1727219422331,7.05,152.71,152.67,3.2748]
[1727219422532,7.05,152.71,152.65,7.05]
[1727219422729,2.732,152.78,152.67,7.05]
[1727219422730,7.05,152.72,152.67,7.05]
[1727219422940,10.3238,152.72,152.69,3.2743]
[1727219423130,7.05,152.72,152.67,7.05]
[1727219423327,7.05,152.74,152.68,7.05]
[1727219423528,3.2738,152.72,152.69,3.2742]
[1727219423728,7.05,152.75,152.69,7.05]
[1727219423934,7.05,152.76,152.71,7.05]
[1727219424231,7.05,152.79,152.73,7.05]
[1727219424631,7.05,152.79,152.73,10.3235]
[1727219424836,7.05,152.78,152.73,7.05]
[1727219425835,7.05,152.78,152.73,10.3235]
[1727219426931,7.05,152.78,152.74,3.2733]
[1727219427136,7.05,152.79,152.74,10.3233]
[1727219427840,7.05,152.79,152.74,7.05]
[1727219428133,7.05,152.81,152.76,7.05]
[1727219428328,7.05,152.8,152.75,7.05]
[1727219429832,7.05,152.8,152.75,10.3229]
[1727219431137,3.22599108,152.82,152.77,7.05]
[1727219431439,7.05,152.83,152.77,7.05]
[1727219431440,3.272,152.81,152.77,7.05]
[1727219431631,3.272,152.81,152.79,7.05]
[1727219431827,3.19855832,152.92,152.8,7.05]
[1727219432033,3.2711,152.85,152.83,7.05]
[1727219433435,3.2708,152.86,152.83,7.05]
[1727219434538,3.2708,152.86,152.82,6.0591]
[1727219435137,3.2706,152.87,152.82,2.7877]
[1727219435439,10.99,152.92,152.82,5.3364]
[1727219435837,10.99,152.9,152.82,5.3364]
[1727219436138,10.99,152.9,152.82,8.608]
[1727219436841,3.2709,152.86,152.82,5.3364]
[1727219437232,10.99,152.9,152.82,5.3364]
[1727219437942,3.2709,152.86,152.82,8.608]
[1727219438336,3.2712,152.84,152.81,348.99]
[1727219438641,10.99,152.88,152.8,3.2718]
[1727219438843,3.272,152.8,152.79,3.26886609]
[1727219439738,3.2729,152.77,152.74,2.6297]
[1727219440041,10.99,152.81,152.74,2.6297]
[1727219441143,10.99,152.79,152.69,340.636]
[1727219441335,10.99,152.79,152.7,2.5562]
[1727219441542,10.99,152.79,152.72,3.2737]
[1727219441543,3.2731,152.75,152.72,3.2737]
[1727219441848,2.7119,152.83,152.71,3.23156371]
[1727219442042,10.99,152.8,152.7,2.5562]
[1727219442241,6.5398,152.91,152.7,2.5562]
[1727219442242,3.22305928,152.84,152.76,10.99]
[1727219442439,10.99,152.83,152.73,10.99]
[1727219442640,2.7659,152.89,152.75,10.99]
[1727219442641,10.99,152.86,152.75,10.99]
[1727219442842,14.3290108,152.86,152.76,3.25908942]
[1727219443248,3.2718,152.82,152.78,3.2724]
[1727219444141,14.3290108,152.86,152.77,2.5482]
[1727219444534,3.2725,152.78,152.77,2.5482]
[1727219444736,3.2725,152.78,152.73,348.99]
[1727219444935,10.99,152.84,152.74,3.26447092]
[1727219445339,3.2723,152.79,152.75,3.273]
[1727219445741,3.2723,152.79,152.76,3.2729]
[1727219446745,14.3290108,152.86,152.75,10.99]
[1727219447646,14.3290108,152.86,152.78,3.2724]
[1727219447846,14.3290108,152.86,152.76,3.23435044]
[1727219448046,3.2719,152.81,152.77,3.2726]
[1727219448545,14.3290108,152.86,152.77,3.2726]
[1727219448845,3.2721,152.8,152.77,3.2726]
[1727219449249,14.3290108,152.86,152.78,3.2724]
[1727219449250,3.2719,152.81,152.78,3.2724]
[1727219449638,3.2719,152.81,152.76,3.23435044]
[1727219450244,3.2719,152.81,152.77,3.2726]
[1727219450444,3.2719,152.81,152.75,10.99]
[1727219450641,3.2719,152.81,152.77,3.2725]
[1727219450841,3.2719,152.81,152.77,6.61412629]
[1727219451141,3.2719,152.81,152.77,3.2725]
[1727219451549,3.2719,152.81,152.78,3.2724]
[1727219451743,10.99,152.86,152.77,3.23851335]
[1727219451946,16.97551812,152.87,152.78,10.99]
[1727219452141,3.2714,152.84,152.8,3.2719]
[1727219452447,13.7046,152.87,152.8,3.2719]
[1727219452643,16.99941255,152.87,152.8,3.2719]
[1727219453444,3.2715,152.83,152.8,3.2719]
[1727219458350,10.99,152.84,152.76,340.6576]
[1727219458550,10.99,152.82,152.76,340.6576]
[1727219459251,10.99,152.82,152.76,343.9303]
[1727219459252,3.2723,152.79,152.76,343.9303]
[1727219459446,10.99,152.82,152.76,343.9303]
[1727219459753,10.99,152.8,152.76,338.0]
[1727219459952,10.99,152.78,152.59,338.0]
[1727219460143,10.99,152.73,152.65,2.7252]
[1727219460356,3.2748,152.68,152.65,2.7252]
[1727219460644,10.99,152.73,152.59,3.30027494]
[1727219460645,10.99,152.69,152.59,3.30027494]
[1727219460953,10.99,152.71,152.61,10.99]
[1727219461155,3.275,152.67,152.62,3.2757]
[1727219461452,10.99,152.71,152.61,10.99]
[1727219461648,2.6491,152.77,152.63,10.99]
[1727219461649,3.2744,152.69,152.63,10.99]
[1727219462257,3.2742,152.7,152.65,3.2751]
[1727219462450,3.2742,152.7,152.63,10.99]
[1727219462957,3.2742,152.7,152.65,3.2751]
[1727219463956,2.6491,152.77,152.65,10.99]
[1727219463957,10.99,152.75,152.65,10.99]
[1727219465242,3.2738,152.72,152.67,3.2748]
[1727219465448,10.99,152.75,152.65,10.99]
[1727219466453,3.2741,152.71,152.67,3.2748]
[1727219467948,10.99,152.75,152.65,10.99]
[1727219468151,10.99,152.73,152.65,10.99]
[1727219468753,3.2743,152.7,152.66,3.2749]
[1727219472660,3.2743,152.7,152.67,3.2748]
[1727219473349,10.99,152.69,152.6,344.08760589]
[1727219473549,10.99,152.69,152.6,340.8091]
[1727219473758,10.99,152.69,152.6,344.0853]
[1727219473759,3.2757,152.63,152.6,344.0853]
[1727219473959,3.2757,152.63,152.6,6.0853]
[1727219475161,3.2759,152.62,152.6,2.8091]
[1727219478964,10.99,152.67,152.6,2.8091]
[1727219479661,3.2758,152.63,152.6,2.8091]
[1727219480457,10.99,152.67,152.58,8.6578]
[1727219481156,10.99,152.67,152.58,5.3812]
[1727219481759,10.99,152.69,152.59,10.99]
[1727219481969,10.99,152.69,152.59,13.5557]
[1727219482352,3.2755,152.64,152.61,3.2761]
[1727219482573,10.99,152.69,152.59,13.5557]
[1727219482879,10.99,152.69,152.57,3.21230245]
[1727219483081,10.99,152.67,152.57,10.99]
[1727219483274,10.99,152.67,152.57,14.28520692]
[1727219483465,13.7896,152.71,152.58,2.8008]
[1727219483677,13.7896,152.71,152.61,10.99]
[1727219483862,13.7896,152.71,152.62,2.5657]
[1727219484263,3.2748,152.68,152.65,3.2752]
[1727219484863,3.2748,152.67,152.65,3.2752]
[1727219485059,3.22889836,152.72,152.62,5.76477701]
[1727219485264,5.2871,152.78,152.65,10.99]
[1727219485469,10.99,152.76,152.67,10.99]
[1727219485864,3.2737,152.73,152.69,3.2743]
[1727219486661,3.2738,152.72,152.69,3.2743]
[1727219488369,3.2735,152.74,152.67,10.99]
[1727219488565,3.2735,152.74,152.67,13.5892]
[1727219488764,10.99,152.76,152.67,13.5892]
[1727219489077,3.2736,152.73,152.7,3.274]
[1727219489270,3.2736,152.73,152.67,13.5892]
[1727219489461,3.2736,152.73,152.69,3.2742]
[1727219490769,3.2736,152.73,152.67,13.5892]
[1727219490770,3.2736,152.73,152.7,3.2742]
[1727219490970,10.99,152.76,152.67,13.5892]
[1727219491573,3.24369472,152.78,152.67,13.5892]
[1727219491777,10.99,152.8,152.7,10.99]
[1727219491971,14.2903603,152.8,152.71,2.5514]
[1727219492677,14.2903603,152.8,152.73,3.2735]
[1727219493276,14.2903603,152.8,152.71,5.8254]
[1727219493476,14.2903603,152.8,152.71,2.5514]
[1727219494272,3.2731,152.76,152.72,3.2736]
[1727219495371,10.99,152.76,152.71,2.5514]
[1727219495678,10.99,152.76,152.67,343.2867]
[1727219496277,10.99,152.76,152.67,5.2867]
[1727219496474,10.99,152.76,152.69,3.2743]
[1727219497775,3.2739,152.72,152.69,3.2743]
[1727219502486,3.3003603,152.8,152.69,10.99]
[1727219502776,14.2903603,152.8,152.71,10.99]
[1727219502968,10.99,152.78,152.69,10.99]
[1727219503172,10.99,152.78,152.71,3.2738]
[1727219503577,5.249,152.83,152.72,3.33485579]
[1727219503881,10.99,152.82,152.73,10.99]
[1727219504081,3.2724,152.79,152.76,3.2729]
[1727219504575,3.21040865,152.8,152.74,2.775]
[1727219504777,3.2726,152.78,152.75,3.2731]
[1727219508975,10.99,152.79,152.74,2.775]
[1727219510080,3.32306606,152.8,152.74,2.775]
[1727219510284,10.99,152.86,152.77,10.99]
[1727219510489,92.82666484,152.88,152.77,10.99]
[1727219510782,10.99,152.9,152.79,10.99]
[1727219510977,14.20665387,152.9,152.79,10.99]
[1727219511378,14.20665387,152.9,152.79,14.32518285]
[1727219511788,3.2712,152.85,152.81,3.2717]
[1727219512991,14.20665387,152.9,152.81,3.2717]
[1727219514491,14.20665387,152.9,152.8,10.99]
[1727219514885,14.20665387,152.9,152.82,3.2715]
[1727219515889,14.20665387,152.9,152.83,3.2713]
[1727219516887,3.21665387,152.9,152.83,3.2713]
[1727219517088,10.99,152.91,152.83,3.2713]
[1727219517692,3.24790769,152.9,152.83,3.2713]
[1727219517995,10.99,152.85,152.75,2.605]
[1727219518191,10.99,152.83,152.75,5.81363432]
[1727219518382,10.99,152.83,152.75,2.605]
[1727219518587,3.2725,152.79,152.75,2.605]
[1727219518781,14.22481657,152.83,152.75,2.605]
[1727219518985,10.99,152.83,152.75,2.605]
[1727219519189,3.2724,152.79,152.75,5.878]
[1727219519397,3.2724,152.79,152.75,3.273]
[1727219521089,3.2721,152.8,152.74,14.20845267]
[1727219521394,3.2721,152.8,152.74,13.6174]
[1727219521926,3.2721,152.8,152.75,3.22562692]
[1727219522594,3.2721,152.8,152.76,3.2728]
[1727219523097,3.2721,152.8,152.77,3.2727]
[1727219524198,10.99,152.85,152.78,3.2724]
[1727219524495,16.2743,152.87,152.76,10.99]
[1727219524693,10.99,152.85,152.74,16.84793754]
[1727219524890,10.99,152.85,152.74,13.6174]
[1727219525198,10.99,152.85,152.77,3.2726]
[1727219525887,3.2722,152.8,152.77,3.2726]
[1727219526494,10.99,152.85,152.75,3.33311509]
[1727219526995,3.2721,152.8,152.77,3.2726]
[1727219527290,3.2263978,152.83,152.74,2.6274]
[1727219527484,3.2733,152.74,152.73,340.7441]
[1727219527992,3.2733,152.74,152.73,338.0]
[1727219530894,3.2729,152.76,152.73,341.2735]
[1727219531493,3.2731,152.75,152.73,338.0]
[1727219531694,3.2731,152.75,152.72,3.2737]
[1727219534200,3.25782375,152.83,152.72,10.99]
[1727219534392,10.99,152.82,152.72,10.99]
[1727219535292,10.99,152.82,152.74,10.99]
[1727219535894,3.2725,152.78,152.74,10.99]
[1727219536500,3.2725,152.78,152.75,3.2731]
[1727219536700,3.2725,152.78,152.75,5.8587]
[1727219537095,5.2843,152.87,152.75,5.8587]
[1727219537096,6.5346,153.03,152.77,21.98]
[1727219537297,10.99,152.97,152.87,10.99]
[1727219537602,3.269,152.95,152.89,14.2599]
[1727219537797,10.99,152.99,152.89,10.99]
[1727219537992,10.99,152.97,152.87,14.25544066]
[1727219538194,3.2692,152.94,152.89,3.2701]
[1727219538798,17.6,152.99,152.87,3.25798351]
[1727219538999,22.9569,153.01,152.88,17.6]
[1727219539298,3.2685,152.97,152.88,17.6]
[1727219539507,3.2685,152.97,152.86,20.80499221]
[1727219540500,3.2685,152.97,152.92,3.2694]
[1727219541601,3.2685,152.97,152.91,3.2696]
[1727219541805,17.6,152.98,152.86,20.80499221]
[1727219542204,17.6,152.98,152.87,5.1322]
[1727219542912,3.2688,152.95,152.9,3.2699]
[1727219543906,17.6,152.96,152.87,5.1322]
[1727219544330,3.2696,152.92,152.87,8.4026]
[1727219545401,37.28,153.16,152.91,17.6]
[1727219545601,8.1264,153.07,152.94,17.6]
[1727219545807,11.45897,153.07,152.94,20.79778853]
[1727219546005,3.2669,153.04,152.98,3.268]
[1727219546211,3.2669,153.04,152.96,17.6]
[1727219546707,3.2667,153.05,152.96,20.86027218]
[1727219547214,3.24653232,153.06,153.01,3.2675]
[1727219547408,8.1264,153.07,153.01,3.2675]
[1727219547607,87.08673112,153.12,153.02,17.6]
[1727219547808,3.30358893,153.11,153.02,17.6]
[1727219548210,17.6,153.03,152.89,3.27]
[1727219548507,3.2691,152.94,152.85,20.81599006]
[1727219548817,17.6,152.94,152.82,3.24410015]
[1727219549118,5.2036,152.93,152.82,3.24410015]
[1727219549309,5.2036,152.93,152.81,2.7537]
[1727219549507,3.27,152.9,152.84,3.2711]
[1727219549711,5.2036,152.93,152.84,3.2711]
[1727219550109,3.27,152.9,152.84,3.2711]
[1727219550707,3.19899326,152.99,152.85,17.6]
[1727219550912,5.121,152.98,152.87,17.6]
[1727219551609,3.2688,152.96,152.9,3.2697]
[1727219551812,78.52,153.27,152.93,17.6]
[1727219552010,17.6,153.05,152.94,2.7893]
[1727219552219,2.685,153.04,152.94,2.7893]
[1727219552420,5.2182,153.04,152.94,2.7893]
[1727219553822,3.2675,153.01,152.94,2.7893]
[1727219554122,5.2182,153.04,152.94,2.7893]
[1727219554328,2.6532,153.11,152.98,17.6]
[1727219554524,2.6532,153.11,152.94,2.7893]
[1727219554525,5.3649,153.1,152.99,3.21071806]
[1727219554727,5.3649,153.1,152.99,17.6]
[1727219554926,5.3649,153.1,152.99,20.90684343]
[1727219554927,3.2665,153.07,152.99,20.90684343]
[1727219555324,3.2665,153.07,152.99,17.6]
[1727219556218,3.2665,153.07,153.02,3.2672]
[1727219556721,17.6,153.09,152.98,338.0]
[1727219557124,3.267,153.04,152.98,338.0]
[1727219557325,17.6,153.09,153.0,3.2677]
[1727219557522,5.3649,153.1,153.0,3.2677]
[1727219557723,5.3649,153.1,152.98,338.0]
[1727219558124,3.2671,153.04,152.99,3.2678]
[1727219559331,3.2671,153.03,152.99,3.2678]
[1727219560927,3.2674,153.02,152.98,341.2682]
[1727219561329,3.2674,153.02,152.98,3.2682]
[1727219562352,5.3649,153.1,152.98,17.6]
[1727219562353,22.9649,153.1,152.98,17.6]
[1727219563333,3.2662,153.08,153.04,3.2668]
[1727219563738,22.9649,153.1,153.04,3.2668]
[1727219564131,3.2662,153.08,153.04,3.2668]
[1727219568241,5.3649,153.1,153.02,3.2673]
[1727219568539,5.3649,153.1,152.98,355.6]
[1727219568734,3.2664,153.07,153.03,3.267]
[1727219569447,3.2664,153.07,153.04,3.2669]
[1727219569747,3.2666,153.06,152.98,355.6]
[1727219570142,5.3649,153.1,152.98,355.6]
[1727219570633,3.2664,153.07,153.03,3.267]
[1727219570831,3.2664,153.07,152.98,355.6]
[1727219571138,17.6,153.07,152.98,338.0]
[1727219571341,5.3649,153.1,153.0,17.6]
[1727219571342,3.34651588,153.1,153.0,17.6]
[1727219571545,3.32527127,153.11,153.0,17.6]
[1727219571739,17.6,153.14,153.04,3.2668]
[1727219571945,3.2658,153.1,153.01,2.7658]
[1727219572241,3.2658,153.1,153.02,17.6]
[1727219572541,3.2655,153.11,153.02,17.6]
[1727219572742,3.2655,153.11,153.03,5.4728]
[1727219573143,8.38790839,153.15,153.03,5.4728]
[1727219573343,3.2653,153.12,153.03,5.4728]
[1727219573538,3.2653,153.12,153.08,3.266]
[1727219573738,3.2645,153.16,153.08,17.6]
[1727219573942,3.2645,153.16,153.09,3.20350918]
[1727219574141,5.3724,153.2,153.12,3.2651]
[1727219574345,3.2642,153.17,153.12,3.2651]
[1727219574646,3.2642,153.17,153.08,17.6]
[1727219574850,3.2642,153.17,153.12,3.265]
[1727219575241,3.264,153.18,153.09,3.24206237]
[1727219575543,17.6,153.32,153.16,17.6]
[1727219575846,2.7782,153.29,153.19,17.6]
[1727219576046,17.6,153.28,153.17,5.236]
[1727219576436,2.7782,153.29,153.17,26.0473505]
[1727219577244,3.2622,153.27,153.17,26.0473505]
[1727219577848,3.2622,153.27,153.2,3.2635]
[1727219578045,3.2622,153.27,153.17,26.0473505]
[1727219578246,3.2622,153.27,153.21,3.2632]
[1727219578749,3.2623,153.26,153.21,3.2632]
[1727219579546,3.34563325,153.33,153.21,3.2632]
[1727219579547,78.38,153.64,153.27,106.0]
[1727219579750,78.38,153.64,153.25,35.2]
[1727219579751,17.6,153.47,153.34,17.6]
[1727219579947,8.0109,153.5,153.37,17.6]
[1727219580146,3.258,153.46,153.37,17.6]
[1727219580344,17.6,153.49,153.37,17.6]
[1727219580544,17.6,153.46,153.35,17.6]
[1727219581349,20.8581,153.46,153.35,17.6]
[1727219582144,3.2578,153.47,153.35,17.6]
[1727219582449,17.6,153.49,153.37,17.6]
[1727219583352,17.6,153.49,153.41,3.259]
[1727219583353,3.2577,153.48,153.41,3.259]
[1727219583557,17.6,153.49,153.37,17.6]
[1727219583756,17.6,153.47,153.34,17.6]
[1727219583943,17.6,153.47,153.34,20.79833039]
[1727219584340,3.2586,153.44,153.37,3.2597]
[1727219584539,17.6,153.47,153.34,20.79833039]
[1727219584754,17.6,153.44,153.32,20.0896]
[1727219584953,17.6,153.39,153.28,2.6387]
[1727219585146,4.8924,153.38,153.26,5.74434466]
[1727219585348,17.6,153.37,153.26,5.74434466]
[1727219585550,3.2604,153.35,153.26,5.74434466]
[1727219585750,17.6,153.37,153.26,5.74434466]
[1727219586448,17.6,153.37,153.24,17.6]
[1727219586855,17.6,153.37,153.24,20.92941121]
[1727219588153,3.2605,153.35,153.24,358.92941121]
[1727219588452,28.51,153.47,153.32,28.51]
[1727219588753,3.2586,153.43,153.38,3.2596]
[1727219589355,3.18553367,153.46,153.38,3.2596]
[1727219589356,3.2584,153.44,153.38,3.2596]
[1727219589645,3.2584,153.44,153.39,3.2594]
[1727219589846,3.2584,153.45,153.39,3.2594]
[1727219590453,28.51,153.45,153.33,33.3466]
[1727219590646,3.22951995,153.46,153.33,33.3466]
[1727219590848,28.51,153.45,153.33,33.3466]
[1727219591048,31.73658492,153.45,153.33,33.3466]
[1727219591958,31.73658492,153.45,153.36,3.26]
[1727219592246,31.73658492,153.45,153.33,33.3466]
[1727219592453,4.831,153.49,153.35,28.51]
[1727219593252,3.2583,153.45,153.39,3.2593]
[1727219593754,4.831,153.49,153.35,28.51]
[1727219594054,33.341,153.49,153.35,28.51]
[1727219594257,3.2582,153.45,153.38,3.2595]
[1727219594749,33.341,153.49,153.35,28.51]
[1727219595352,33.341,153.49,153.39,3.2594]
[1727219595353,3.2584,153.45,153.39,3.2594]
[1727219596150,3.258,153.46,153.4,3.2592]
[1727219596348,3.258,153.46,153.38,28.51]
[1727219596753,3.258,153.46,153.4,3.2592]
[1727219596951,4.831,153.49,153.4,3.2592]
[1727219598247,33.341,153.49,153.38,28.51]
[1727219598556,28.51,153.47,153.35,31.0443]
[1727219598749,3.2587,153.43,153.37,3.2597]
[1727219600755,3.2587,153.43,153.38,3.2597]
[1727219602061,3.33844247,153.45,153.35,31.0443]
[1727219602265,28.51,153.44,153.35,2.5343]
[1727219602460,3.2559207,153.43,153.35,2.5343]
[1727219602661,28.51,153.44,153.35,2.5343]
[1727219603067,28.51,153.44,153.36,3.26]
[1727219603068,3.2592,153.41,153.36,3.26]
[1727219604353,3.2592,153.41,153.37,3.2598]
[1727219604551,31.72950841,153.44,153.35,2.5343]
[1727219604552,3.2588,153.42,153.35,2.5343]
[1727219604751,31.72950841,153.44,153.38,3.2595]
[1727219604955,31.72950841,153.44,153.35,2.5343]
[1727219605360,31.72950841,153.44,153.37,3.2598]
[1727219605961,3.259,153.42,153.37,3.2598]
[1727219607060,3.259,153.41,153.37,3.2598]
[1727219609966,31.72950841,153.44,153.35,3.2603]
[1727219610265,17.54,153.43,153.33,8.12024316]
[1727219610457,3.2592,153.4,153.36,3.2601]
[1727219611066,3.2592,153.4,153.33,8.12024316]
[1727219611266,3.2591,153.41,153.33,8.12024316]
[1727219612065,3.2591,153.41,153.35,3.2601]
[1727219612262,3.2593,153.4,153.35,3.2601]
[1727219614563,17.54,153.43,153.33,8.12024316]
[1727219615168,3.2592,153.4,153.35,3.2603]
[1727219616568,17.54,153.43,153.33,2.365]
[1727219616772,4.4867,153.42,153.31,17.54]
[1727219616968,2.137,153.41,153.31,17.54]
[1727219617272,2.137,153.41,153.33,3.2607]
[1727219617660,3.2599,153.37,153.33,3.2607]
[1727219617866,7.76056,153.42,153.31,17.54]
[1727219618168,3.2596,153.39,153.29,5.72212651]
[1727219618370,9.89756,153.42,153.33,3.2606]
[1727219618770,3.2598,153.38,153.33,3.2606]
[1727219619965,17.54,153.43,153.33,444.0]
[1727219620165,2.2794,153.51,153.39,17.54]
[1727219620369,17.54,153.5,153.39,17.54]
[1727219621071,17.54,153.5,153.41,3.259]
[1727219621268,17.54,153.5,153.39,17.54]
[1727219621685,17.54,153.5,153.4,3.2591]
[1727219621872,5.58022202,153.51,153.4,3.2591]
[1727219622067,17.54,153.5,153.4,3.2591]
[1727219622477,17.54,153.5,153.41,3.259]
[1727219622683,17.54,153.5,153.39,17.54]
[1727219622978,17.54,153.5,153.4,3.2591]
[1727219625177,5.58022202,153.51,153.4,3.2591]
[1727219625381,17.54,153.49,153.4,3.2591]
[1727219625581,17.54,153.49,153.39,3.2594]
[1727219625779,17.54,153.49,153.37,17.54]
[1727219626178,5.58022202,153.51,153.41,3.2588]
[1727219626373,17.54,153.5,153.37,17.54]
[1727219626773,17.54,153.5,153.4,3.2591]
[1727219626975,17.54,153.5,153.37,17.54]
[1727219627179,17.54,153.44,153.34,2.2485]
[1727219627375,4.4794,153.43,153.34,2.2485]
[1727219627574,9.86263359,153.43,153.34,2.2485]
[1727219627979,9.86263359,153.43,153.35,3.2602]
[1727219628475,9.86263359,153.43,153.29,340.4437]
[1727219628476,17.54,153.41,153.26,338.0]
[1727219628676,20.77068893,153.41,153.27,5.59120365]
[1727219628876,20.77068893,153.41,153.3,3.2614]
[1727219629086,20.77068893,153.41,153.29,17.54]
[1727219629690,20.77068893,153.41,153.29,20.8014]
[1727219630075,20.77068893,153.41,153.29,3.2614]
[1727219630780,20.77068893,153.41,153.3,3.2613]
[1727219630982,20.77068893,153.41,153.28,17.54]
[1727219632375,17.54,153.36,153.27,2.2682]
[1727219632675,4.609,153.35,153.27,2.2682]
[1727219632978,4.609,153.35,153.22,17.54]
[1727219632979,24.3786,153.35,153.22,17.54]
[1727219633183,6.8386,153.35,153.24,17.54]
[1727219633483,6.8386,153.35,153.26,3.262]
[1727219636088,6.8386,153.35,153.24,17.54]
[1727219636089,6.8386,153.35,153.25,3.2624]
[1727219636593,10.17323158,153.35,153.25,3.2624]
[1727219637595,10.17323158,153.35,153.22,17.54]
[1727219637794,17.54,153.33,153.22,17.54]
[1727219638189,17.54,153.33,153.24,3.2626]
[1727219640490,17.54,153.33,153.19,340.2145]
[1727219640491,17.54,153.26,153.13,17.54]
[1727219640693,2.1526,153.25,153.14,2.1684]
[1727219640991,3.2634,153.21,153.16,3.2642]
[1727219643800,4.481,153.25,153.15,3.2645]
[1727219643801,3.2636,153.2,153.15,3.2645]
[1727219644594,3.2637,153.19,153.15,3.2645]
[1727219647297,86.97404767,153.29,153.18,17.54]
[1727219647494,91.25874767,153.29,153.2,17.54]
[1727219647895,3.2623,153.26,153.22,3.263]
[1727219648297,226.0,153.66,153.25,17.54]
[1727219648498,4.3543,153.39,153.3,17.54]
[1727219649395,7.69274003,153.39,153.3,17.54]
[1727219649792,7.69274003,153.39,153.31,3.2611]
[1727219649989,7.69274003,153.39,153.3,17.54]
[1727219651300,7.69274003,153.39,153.27,17.54]
[1727219651501,25.23274003,153.39,153.27,17.54]
[1727219652303,25.23274003,153.39,153.28,3.2617]
[1727219652810,25.23274003,153.39,153.27,20.8018]
[1727219652997,25.23274003,153.39,153.27,3.2618]
[1727219654001,25.23274003,153.39,153.28,3.2618]
[1727219655904,17.54,153.36,153.28,3.2618]
[1727219658109,17.54,153.36,153.24,17.54]
[1727219658110,17.54,153.36,153.27,3.262]
[1727219662814,17.54,153.34,153.27,3.262]
[1727219664916,17.54,153.34,153.26,3.2621]
[1727219665217,2.1943,153.33,153.26,3.2621]
[1727219667113,2.1558,153.32,153.26,3.2621]
[1727219667515,2.1558,153.32,153.27,3.262]
[1727219670417,13.1158,153.32,153.27,3.262]
[1727219672323,10.96,153.29,153.23,6.8206]
[1727219673023,10.96,153.27,153.16,338.0]
[1727219673218,10.96,153.28,153.19,10.96]
[1727219673426,10.96,153.28,153.24,3.2625]
[1727219673617,10.96,153.28,153.24,3.33398603]
[1727219673823,10.96,153.28,153.19,348.96]
[1727219674017,10.96,153.28,153.24,3.2625]
[1727219674229,10.96,153.28,153.24,6.53827201]
[1727219674427,10.96,153.28,153.24,3.2625]
[1727219674824,10.96,153.25,153.19,338.0]
[1727219675126,10.96,153.28,153.15,3.30547757]
[1727219675127,10.96,153.22,153.15,3.30547757]
[1727219675320,10.96,153.22,153.12,348.96]
[1727219675726,10.96,153.22,153.12,352.26025461]